bitfinex/quotes_BTCUSD_20241018
["timestamp","ask_amount","ask_price","bid_price","bid_amount"]
[1729220726840,0.29571715,68139.0,68138.0,0.001656]
[1729220727568,0.14895915,68139.0,68138.0,0.001656]
[1729220728034,0.15795915,68139.0,68138.0,0.01021024]
[1729220730342,0.16195915,68139.0,68138.0,0.01121024]
[1729220731976,0.16195915,68139.0,68138.0,0.01429732]
[1729220733609,0.55030365,68139.0,68138.0,0.01429732]
[1729220733836,0.50631715,68139.0,68138.0,0.003656]
[1729220734079,0.7946097,68139.0,68138.0,0.003656]
[1729220734325,0.7946097,68139.0,68126.0,0.005]
[1729220734326,0.293573,68126.0,68125.0,0.22231279]
[1729220734594,0.86621597,68126.0,68125.0,0.22231279]
[1729220734826,0.86621597,68126.0,68125.0,0.00917483]
[1729220734827,0.96777868,68126.0,68125.0,0.00917483]
[1729220735093,0.96777868,68126.0,68107.0,0.51596579]
[1729220735094,0.023,68116.0,68107.0,0.22231279]
[1729220735335,0.17195915,68115.0,68107.0,0.22231279]
[1729220735582,0.17195915,68115.0,68110.0,0.14682]
[1729220735583,0.31877015,68115.0,68110.0,0.14682]
[1729220736034,0.31877015,68115.0,68111.0,0.01289435]
[1729220737401,0.33177015,68115.0,68111.0,0.16071235]
[1729220737880,0.174817,68112.0,68111.0,0.01389435]
[1729220738108,0.32377615,68112.0,68111.0,0.01389435]
[1729220738338,0.17195915,68112.0,68111.0,0.001]
[1729220738572,0.0953,68114.0,68113.0,0.146814]
[1729220738803,0.013,68115.0,68114.0,0.151812]
[1729220739069,0.013,68115.0,68114.0,0.15474802]
[1729220739301,0.013,68115.0,68114.0,0.17271241]
[1729220739523,0.006,68115.0,68114.0,0.19163302]
[1729220739790,0.006,68115.0,68114.0,0.17271241]
[1729220740021,0.22231279,68137.0,68124.0,0.151791]
[1729220740259,0.22231279,68137.0,68124.0,0.39872361]
[1729220740484,0.22231279,68137.0,68136.0,0.146765]
[1729220740972,0.22231279,68137.0,68136.0,0.15995434]
[1729220741204,0.000829,68140.0,68139.0,0.146758]
[1729220741678,0.000829,68140.0,68139.0,0.15993672]
[1729220742358,0.000829,68140.0,68139.0,0.01317872]
[1729220742586,0.147585,68140.0,68139.0,0.01317872]
[1729220742823,0.29654415,68140.0,68139.0,0.01317872]
[1729220743053,0.54763585,68140.0,68125.0,0.005]
[1729220743303,0.54763585,68140.0,68125.0,0.22731279]
[1729220743304,0.023,68136.0,68125.0,0.22731279]
[1729220743528,0.146781,68129.0,68126.0,0.01316603]
[1729220743773,0.293556,68130.0,68126.0,0.01316603]
[1729220743774,0.146783,68128.0,68126.0,0.01316603]
[1729220743996,0.169784,68127.0,68126.0,0.01316603]
[1729220744224,0.31874315,68127.0,68126.0,0.01316603]
[1729220744450,0.146792,68124.0,68120.0,0.146799]
[1729220744682,0.146792,68124.0,68118.0,0.005]
[1729220744683,0.29575115,68124.0,68119.0,0.1468]
[1729220745130,0.14895915,68124.0,68118.0,0.005]
[1729220745365,0.14895915,68124.0,68121.0,0.146796]
[1729220745596,0.14895915,68124.0,68122.0,0.146793]
[1729220746537,0.15295915,68124.0,68122.0,0.146793]
[1729220747176,0.14895915,68124.0,68122.0,0.146793]
[1729220747435,0.15295915,68124.0,68120.0,0.45933161]
[1729220747656,0.15295915,68124.0,68123.0,0.146793]
[1729220747884,0.15695915,68124.0,68123.0,0.146793]
[1729220748823,0.15295915,68124.0,68123.0,0.146793]
[1729220749270,0.14895915,68124.0,68123.0,0.146793]
[1729220749729,0.14995915,68124.0,68123.0,0.146793]
[1729220750190,0.15295915,68124.0,68123.0,0.146793]
[1729220750408,0.15395915,68124.0,68123.0,0.146793]
[1729220751774,0.005,68124.0,68123.0,0.146793]
[1729220752003,0.005,68124.0,68123.0,0.151793]
[1729220752503,0.004,68124.0,68123.0,0.151793]
[1729220753623,0.22231279,68132.0,68123.0,0.005]
[1729220753863,0.14895915,68131.0,68122.0,0.001656]
[1729220754097,0.001,68124.0,68122.0,0.295246]
[1729220754365,0.003,68124.0,68123.0,0.1599941]
[1729220754591,0.001,68124.0,68123.0,0.1599951]
[1729220755523,0.146783,68128.0,68123.0,0.0132021]
[1729220755741,0.14895915,68127.0,68124.0,0.146789]
[1729220756224,0.14895915,68127.0,68125.0,0.01319502]
[1729220756487,0.51751572,68126.0,68125.0,0.01319502]
[1729220756734,0.456286,68126.0,68125.0,0.01319502]
[1729220756978,0.169793,68123.0,68122.0,0.001656]
[1729220757697,0.174793,68123.0,68122.0,0.001656]
[1729220758949,0.73662541,68123.0,68122.0,0.001656]
[1729220759175,0.88758456,68123.0,68122.0,0.001656]
[1729220759430,1.12310712,68123.0,68122.0,0.001656]
[1729220759651,1.03542789,68123.0,68122.0,0.001656]
[1729220759876,1.04942789,68123.0,68122.0,0.002656]
[1729220760356,1.12110318,68123.0,68122.0,0.001656]
[1729220760601,1.12310318,68123.0,68122.0,0.001656]
[1729220760838,1.11320969,68123.0,68122.0,0.001656]
[1729220761334,0.97825054,68123.0,68122.0,0.001656]
[1729220761563,1.06591411,68123.0,68122.0,0.001656]
[1729220762076,1.12703966,68123.0,68122.0,0.001656]
[1729220762330,1.01743803,68123.0,68122.0,0.00074669]
[1729220762816,0.230319,68111.0,68110.0,0.001656]
[1729220763055,0.40227815,68111.0,68110.0,0.001656]
[1729220763563,0.59707815,68111.0,68110.0,0.001656]
[1729220764042,0.61107815,68111.0,68110.0,0.002656]
[1729220764510,0.62229554,68111.0,68110.0,0.002656]
[1729220765721,0.63629554,68111.0,68110.0,0.002656]
[1729220765972,0.46299554,68111.0,68110.0,0.002656]
[1729220767386,0.44677815,68111.0,68110.0,0.002656]
[1729220767623,0.34677815,68111.0,68110.0,0.002656]
[1729220767850,0.35177815,68111.0,68110.0,0.002656]
[1729220770490,0.34677815,68111.0,68110.0,0.002656]
[1729220771006,0.028,68111.0,68110.0,0.16838861]
[1729220771279,0.028,68111.0,68110.0,0.39620961]
[1729220771510,0.028,68111.0,68110.0,0.40828288]
[1729220772471,0.014,68111.0,68110.0,0.40728288]
[1729220772707,0.51590679,68122.0,68110.0,0.26348019]
[1729220772958,0.22231279,68114.0,68113.0,0.151814]
[1729220773193,0.293614,68117.0,68110.0,0.25948019]
[1729220773429,0.011,68111.0,68110.0,0.224477]
[1729220773672,0.011,68111.0,68110.0,0.077656]
[1729220773931,0.011,68111.0,68110.0,0.088656]
[1729220773932,0.012,68111.0,68110.0,0.088656]
[1729220774175,0.001,68111.0,68110.0,0.235477]
[1729220774413,0.001,68111.0,68110.0,0.014656]
[1729220774669,0.001,68111.0,68110.0,0.161477]
[1729220774921,0.29677815,68111.0,68110.0,0.014656]
[1729220775185,0.33400534,68111.0,68110.0,0.014656]
[1729220775671,0.14895915,68111.0,68110.0,0.001656]
[1729220775906,0.293614,68117.0,68110.0,0.001656]
[1729220775907,0.001,68117.0,68114.0,0.005]
[1729220776159,0.001,68117.0,68110.0,0.007656]
[1729220776160,0.001,68117.0,68116.0,0.151808]
[1729220776393,0.22231279,68120.0,68119.0,0.146801]
[1729220776858,0.22231279,68120.0,68119.0,0.005]
[1729220777090,0.000829,68124.0,68116.0,0.293613]
[1729220777337,0.000829,68124.0,68120.0,0.146798]
[1729220777564,0.000829,68124.0,68118.0,0.005]
[1729220777565,0.147622,68123.0,68118.0,0.146803]
[1729220777962,0.14895915,68122.0,68114.0,0.293622]
[1729220777964,0.023,68121.0,68114.0,0.293625]
[1729220778210,0.14895915,68121.0,68113.0,0.16573261]
[1729220778442,0.14895915,68121.0,68120.0,0.146799]
[1729220779563,0.15495915,68121.0,68120.0,0.146799]
[1729220779781,0.15395915,68121.0,68120.0,0.146799]
[1729220780207,0.15995915,68121.0,68120.0,0.146799]
[1729220781112,0.15995915,68121.0,68118.0,0.31253461]
[1729220781334,0.15995915,68121.0,68118.0,0.16573261]
[1729220781564,0.15995915,68121.0,68119.0,0.146801]
[1729220782070,0.15495915,68121.0,68118.0,0.146803]
[1729220782308,0.15995915,68121.0,68120.0,0.146799]
[1729220782542,0.15395915,68121.0,68120.0,0.146799]
[1729220782764,0.14895915,68121.0,68120.0,0.146799]
[1729220782980,0.15495915,68121.0,68120.0,0.146799]
[1729220783215,0.15395915,68121.0,68120.0,0.146799]
[1729220783686,0.15495915,68121.0,68120.0,0.146799]
[1729220784421,0.15495915,68121.0,68120.0,0.16175491]
[1729220785088,0.15995915,68121.0,68120.0,0.16175491]
[1729220785540,0.15995915,68121.0,68120.0,0.01495591]
[1729220785762,0.15995915,68121.0,68120.0,0.16175491]
[1729220786445,0.15995915,68121.0,68120.0,0.01495591]
[1729220786676,0.15995915,68121.0,68120.0,0.16175491]
[1729220786918,0.15953342,68121.0,68120.0,0.16175491]
[1729220787136,0.011,68121.0,68120.0,0.16175491]
[1729220787387,0.011,68121.0,68120.0,0.33248752]
[1729220787388,0.01085319,68121.0,68120.0,0.33248752]
[1729220787606,0.01085319,68121.0,68120.0,0.50768752]
[1729220787832,0.01085319,68121.0,68120.0,0.51268752]
[1729220788054,0.01085319,68121.0,68120.0,0.52268752]
[1729220788289,0.00585319,68121.0,68120.0,0.52268752]
[1729220788529,0.000829,68122.0,68121.0,0.229097]
[1729220789008,0.000829,68122.0,68121.0,0.2440303]
[1729220789570,0.000829,68122.0,68121.0,0.2490303]
[1729220790213,0.001829,68122.0,68121.0,0.2500303]
[1729220791283,0.001829,68122.0,68121.0,0.2450303]
[1729220791506,0.001829,68122.0,68121.0,0.2440303]
[1729220791507,0.000829,68122.0,68121.0,0.2440303]
[1729220791713,0.001829,68122.0,68121.0,0.2550303]
[1729220791973,0.001829,68122.0,68121.0,0.2570303]
[1729220791974,0.002829,68122.0,68121.0,0.2570303]
[1729220799822,0.002829,68122.0,68121.0,0.1813883]
[1729220800044,0.002829,68122.0,68121.0,0.1763883]
[1729220800280,0.002829,68122.0,68121.0,0.1813883]
[1729220801957,0.002829,68122.0,68121.0,0.1763883]
[1729220803055,0.001829,68122.0,68121.0,0.1743883]
[1729220803492,0.001829,68122.0,68121.0,0.34112091]
[1729220803730,0.000829,68122.0,68121.0,0.33012091]
[1729220803940,0.001829,68122.0,68121.0,0.34012091]
[1729220804589,0.001829,68122.0,68121.0,0.33012091]
[1729220804590,0.000829,68122.0,68121.0,0.33012091]
[1729220804807,0.000829,68122.0,68121.0,0.33212091]
[1729220805466,0.000829,68122.0,68121.0,0.33012091]
[1729220805697,0.000829,68122.0,68121.0,0.32912091]
[1729220806117,0.000829,68122.0,68121.0,0.0165913]
[1729220806118,0.15278815,68122.0,68121.0,0.0165913]
[1729220806335,0.29958315,68122.0,68121.0,0.0165913]
[1729220806559,0.32258315,68122.0,68121.0,0.0165913]
[1729220806779,0.32758315,68122.0,68121.0,0.0165913]
[1729220807013,0.32758315,68122.0,68121.0,0.001658]
[1729220807755,0.32958315,68122.0,68121.0,0.001658]
[1729220808179,0.32458315,68122.0,68121.0,0.001658]
[1729220808396,0.32858315,68122.0,68121.0,0.001658]
[1729220808607,0.33258315,68122.0,68121.0,0.001658]
[1729220808834,0.32858315,68122.0,68121.0,0.001658]
[1729220809250,0.33358315,68122.0,68121.0,0.001658]
[1729220811829,0.32958315,68122.0,68121.0,0.001658]
[1729220812068,0.32458315,68122.0,68121.0,0.001658]
[1729220812274,0.33558315,68122.0,68121.0,0.001658]
[1729220813137,0.34723383,68122.0,68121.0,0.001658]
[1729220813348,0.35723383,68122.0,68121.0,0.002658]
[1729220813758,0.34723383,68122.0,68121.0,0.001658]
[1729220813952,0.49619298,68122.0,68121.0,0.001658]
[1729220814160,0.35823383,68122.0,68121.0,0.002658]
[1729220814759,0.33623383,68122.0,68121.0,0.001658]
[1729220814939,0.35923383,68122.0,68121.0,0.001658]
[1729220815204,0.34723383,68122.0,68121.0,0.001658]
[1729220815427,0.39108039,68122.0,68121.0,0.001658]
[1729220815674,0.40417149,68122.0,68121.0,0.001658]
[1729220815967,0.39252081,68122.0,68121.0,0.001658]
[1729220816204,0.38752081,68122.0,68121.0,0.001658]
[1729220816439,0.39252081,68122.0,68121.0,0.001658]
[1729220816680,0.32058315,68122.0,68121.0,0.001658]
[1729220817627,0.17378815,68122.0,68121.0,0.001658]
[1729220817873,0.17378815,68122.0,68121.0,0.148455]
[1729220818112,0.024829,68122.0,68121.0,0.16046244]
[1729220818352,0.024829,68122.0,68121.0,0.33856244]
[1729220818853,0.024829,68122.0,68121.0,0.3415643]
[1729220818854,0.011829,68122.0,68121.0,0.3415643]
[1729220819325,0.014829,68122.0,68121.0,0.3415643]
[1729220819577,0.011829,68122.0,68121.0,0.3415643]
[1729220819811,0.001829,68122.0,68121.0,0.3415643]
[1729220820027,0.009829,68122.0,68121.0,0.3425643]
[1729220820468,0.001829,68122.0,68121.0,0.3415643]
[1729220820965,0.002829,68122.0,68121.0,0.3485643]
[1729220821187,0.001829,68122.0,68121.0,0.3485643]
[1729220821435,0.001829,68122.0,68121.0,0.3435643]
[1729220821696,0.001829,68122.0,68121.0,0.3495643]
[1729220822162,0.002829,68122.0,68121.0,0.3515643]
[1729220823099,0.002829,68122.0,68121.0,0.2537643]
[1729220826184,0.002829,68122.0,68121.0,0.0266673]
[1729220826644,0.002829,68122.0,68121.0,0.1734643]
[1729220826645,0.15178815,68122.0,68121.0,0.1734643]
[1729220827084,0.15078815,68122.0,68121.0,0.1654643]
[1729220827314,0.15078815,68122.0,68121.0,0.0186673]
[1729220827540,0.15478815,68122.0,68121.0,0.1654643]
[1729220827818,0.15378815,68122.0,68121.0,0.1634643]
[1729220828059,0.15378815,68122.0,68121.0,0.0166673]
[1729220828278,0.15878815,68122.0,68121.0,0.0166673]
[1729220832222,0.30558315,68122.0,68121.0,0.0166673]
[1729220832458,0.15878815,68122.0,68121.0,0.001658]
[1729220832707,0.41658315,68122.0,68121.0,0.001658]
[1729220832973,0.46052984,68122.0,68121.0,0.001658]
[1729220833188,0.46053381,68122.0,68121.0,0.001658]
[1729220833419,0.41658315,68122.0,68121.0,0.001658]
[1729220834136,0.32858315,68122.0,68121.0,0.001658]
[1729220834829,0.37253146,68122.0,68121.0,0.001658]
[1729220835966,0.32858315,68122.0,68121.0,0.001658]
[1729220836183,0.37253146,68122.0,68121.0,0.001658]
[1729220836412,0.37253146,68122.0,68121.0,0.01362688]
[1729220836627,0.37253742,68122.0,68121.0,0.001658]
[1729220836841,0.32858315,68122.0,68121.0,0.001658]
[1729220837058,0.32253753,68122.0,68121.0,0.001658]
[1729220838163,0.27858315,68122.0,68121.0,0.001658]
[1729220838657,0.27858315,68122.0,68121.0,0.01362688]
[1729220838880,0.27858315,68122.0,68121.0,0.001658]
[1729220840053,0.32253753,68122.0,68121.0,0.001658]
[1729220840982,0.27858315,68122.0,68121.0,0.001658]
[1729220841476,0.42970318,68122.0,68121.0,0.001658]
[1729220841716,0.52607395,68122.0,68121.0,0.001658]
[1729220842015,0.63594068,68122.0,68121.0,0.001658]
[1729220842495,0.63198326,68122.0,68121.0,0.001658]
[1729220842721,0.64598326,68122.0,68121.0,0.002658]
[1729220843407,0.78723665,68122.0,68121.0,0.002658]
[1729220843630,0.64098326,68122.0,68121.0,0.002658]
[1729220843855,0.66623743,68122.0,68121.0,0.002658]
[1729220844303,0.75423743,68122.0,68121.0,0.001658]
[1729220844549,0.76242812,68122.0,68121.0,0.001658]
[1729220844763,0.75042812,68122.0,68121.0,0.001658]
[1729220844989,0.76442812,68122.0,68121.0,0.001658]
[1729220845210,0.91338727,68122.0,68121.0,0.001658]
[1729220845937,0.284812,68114.0,68113.0,0.001658]
[1729220846199,1.04710402,68114.0,68113.0,0.001658]
[1729220846434,0.93719456,68114.0,68113.0,0.001658]
[1729220846671,0.93719477,68114.0,68113.0,0.001658]
[1729220846925,0.93915073,68114.0,68113.0,0.001658]
[1729220847170,0.93915073,68114.0,68100.0,0.001658]
[1729220847171,0.15179596,68101.0,68100.0,0.001658]
[1729220847409,0.32375511,68101.0,68100.0,0.001658]
[1729220848598,0.38068159,68101.0,68100.0,0.001658]
[1729220849524,0.33675511,68101.0,68100.0,0.001658]
[1729220849977,0.35075511,68101.0,68100.0,0.001658]
[1729220851188,0.36232544,68101.0,68100.0,0.001658]
[1729220854522,0.38449714,68101.0,68100.0,0.001658]
[1729220855002,0.37292681,68101.0,68100.0,0.001658]
[1729220856201,0.37292681,68101.0,68100.0,0.078258]
[1729220856202,0.19813085,68101.0,68100.0,0.078258]
[1729220856448,0.36797085,68101.0,68100.0,0.001658]
[1729220856690,0.36797085,68101.0,68100.0,0.01940619]
[1729220856913,0.36797085,68101.0,68100.0,0.001658]
[1729220867790,0.37292681,68101.0,68100.0,0.001658]
[1729220869677,0.36797085,68101.0,68100.0,0.001658]
[1729220870144,0.36797085,68101.0,68100.0,0.01939348]
[1729220870366,0.22113085,68101.0,68100.0,0.01939348]
[1729220870826,0.0491717,68101.0,68100.0,0.26183548]
[1729220871049,0.0491717,68101.0,68100.0,0.34153548]
[1729220871718,0.0361717,68101.0,68100.0,0.34153548]
[1729220872173,0.0491717,68101.0,68100.0,0.34153548]
[1729220872623,0.0361717,68101.0,68100.0,0.34153548]
[1729220872848,0.0381717,68101.0,68100.0,0.34153548]
[1729220873071,0.0241717,68101.0,68100.0,0.34153548]
[1729220873521,0.0311717,68101.0,68100.0,0.34153548]
[1729220873748,0.0241717,68101.0,68100.0,0.34153548]
[1729220874075,0.0281717,68101.0,68100.0,0.34153548]
[1729220874616,0.0261717,68101.0,68100.0,0.34153548]
[1729220874834,0.0271717,68101.0,68100.0,0.34153548]
[1729220875048,0.0351717,68101.0,68100.0,0.34153548]
[1729220875508,0.0301717,68101.0,68100.0,0.34153548]
[1729220875758,0.0341717,68101.0,68100.0,0.34153548]
[1729220876231,0.0261717,68101.0,68100.0,0.34153548]
[1729220876702,0.0321717,68101.0,68100.0,0.34153548]
[1729220878288,0.0321717,68101.0,68100.0,0.19469348]
[1729220878523,0.35097085,68101.0,68100.0,0.01939348]
[1729220880677,0.20413085,68101.0,68100.0,0.01939348]
[1729220881379,0.0321717,68101.0,68100.0,0.16623548]
[1729220882060,0.0321717,68101.0,68100.0,0.01939348]
[1729220882277,0.18113085,68101.0,68100.0,0.01939348]
[1729220882745,0.18113085,68101.0,68100.0,0.16623548]
[1729220884368,0.0321717,68101.0,68100.0,0.16623548]
[1729220886480,0.0321717,68101.0,68100.0,0.11623548]
[1729220886711,0.0321717,68101.0,68100.0,0.13132951]
[1729220888379,0.0321717,68101.0,68100.0,0.30812951]
[1729220888380,0.01,68101.0,68100.0,0.30812951]
[1729220892522,0.01,68101.0,68100.0,0.30978551]
[1729220893246,0.01,68101.0,68100.0,0.09815003]
[1729220893485,0.01,68101.0,68100.0,0.09315003]
[1729220894190,0.01,68101.0,68100.0,0.23999203]
[1729220895390,0.01,68101.0,68100.0,0.24499203]
[1729220899934,0.01,68101.0,68100.0,0.35919438]
[1729220902230,0.01,68101.0,68100.0,0.45849438]
[1729220902743,0.01,68101.0,68100.0,0.57269673]
[1729220902965,0.01,68101.0,68100.0,0.45849438]
[1729220903410,0.004,68101.0,68100.0,0.46349438]
[1729220903636,0.004828,68101.0,68100.0,0.57769673]
[1729220903855,0.000828,68101.0,68100.0,0.51496919]
[1729220904081,0.000828,68101.0,68100.0,0.69164635]
[1729220904082,0.001828,68101.0,68100.0,0.69164635]
[1729220904327,0.002828,68101.0,68100.0,0.88922584]
[1729220904550,0.002828,68101.0,68100.0,0.88822584]
[1729220904551,0.001828,68101.0,68100.0,0.88822584]
[1729220905023,0.002828,68101.0,68100.0,0.88922584]
[1729220905264,0.000829,68110.0,68100.0,0.88922584]
[1729220905265,0.000829,68110.0,68109.0,0.335723]
[1729220905493,0.000829,68110.0,68109.0,0.50140016]
[1729220905711,0.000829,68110.0,68109.0,0.51655179]
[1729220906387,0.001829,68110.0,68109.0,0.51955179]
[1729220906615,0.000829,68110.0,68109.0,0.51855179]
[1729220906857,0.000829,68110.0,68109.0,0.51655179]
[1729220907075,0.001829,68110.0,68109.0,0.51955179]
[1729220907295,0.002829,68110.0,68109.0,0.52155179]
[1729220909620,0.002829,68110.0,68109.0,0.51655179]
[1729220910159,0.002829,68110.0,68109.0,0.51455179]
[1729220910160,0.001829,68110.0,68109.0,0.51455179]
[1729220910371,0.001829,68110.0,68109.0,0.51155179]
[1729220910372,0.000829,68110.0,68109.0,0.51155179]
[1729220910842,0.000829,68110.0,68109.0,0.26127463]
[1729220911059,0.001829,68110.0,68109.0,0.34865179]
[1729220911511,0.000829,68110.0,68109.0,0.34665179]
[1729220911736,0.000829,68110.0,68109.0,0.34865179]
[1729220911970,0.000829,68110.0,68109.0,0.33465179]
[1729220912183,0.000829,68110.0,68109.0,0.42545179]
[1729220913186,0.005829,68110.0,68109.0,0.42545179]
[1729220913408,0.000829,68110.0,68109.0,0.42545179]
[1729220914353,0.000829,68110.0,68109.0,0.42345179]
[1729220915297,0.002829,68110.0,68109.0,0.42345179]
[1729220915768,0.000829,68110.0,68109.0,0.42345179]
[1729220915978,0.000829,68110.0,68109.0,0.42545179]
[1729220916672,0.000829,68110.0,68109.0,0.50345179]
[1729220916807,0.000829,68110.0,68109.0,0.50445179]
[1729220917236,0.000829,68110.0,68109.0,0.50245179]
[1729220917667,0.000829,68110.0,68109.0,0.50945179]
[1729220917908,0.000829,68110.0,68109.0,0.66841094]
[1729220918109,0.000829,68122.0,68121.0,0.151797]
[1729220918379,0.000829,68122.0,68121.0,0.51107628]
[1729220919203,0.000829,68122.0,68121.0,0.51607628]
[1729220919640,0.001829,68122.0,68121.0,0.53007628]
[1729220919859,0.001829,68122.0,68121.0,0.51607628]
[1729220920063,0.002829,68122.0,68121.0,0.53007628]
[1729220920482,0.000829,68122.0,68121.0,0.51607628]
[1729220920881,0.002829,68122.0,68121.0,0.53207628]
[1729220921325,0.001829,68122.0,68121.0,0.53007628]
[1729220921769,0.002829,68122.0,68121.0,0.53207628]
[1729220921969,0.002829,68122.0,68121.0,0.36639912]
[1729220922209,0.002829,68122.0,68121.0,0.36139912]
[1729220925025,0.002829,68122.0,68121.0,0.26289912]
[1729220925271,0.002829,68122.0,68121.0,0.18359912]
[1729220925665,0.002829,68122.0,68121.0,0.27829912]
[1729220929628,0.002829,68122.0,68121.0,0.18359912]
[1729220930944,0.002829,68122.0,68121.0,0.17859912]
[1729220931197,0.002829,68122.0,68121.0,0.18359912]
[1729220931434,0.002829,68122.0,68121.0,0.17859912]
[1729220931644,0.001829,68122.0,68121.0,0.17659912]
[1729220931864,0.001829,68122.0,68121.0,0.18159912]
[1729220932103,0.000829,68122.0,68121.0,0.16759912]
[1729220932318,0.004829,68122.0,68121.0,0.16759912]
[1729220932985,0.004829,68122.0,68121.0,0.16259912]
[1729220933252,0.004829,68122.0,68121.0,0.16759912]
[1729220933460,0.005829,68122.0,68121.0,0.16259912]
[1729220933678,0.005829,68122.0,68121.0,0.16759912]
[1729220934127,0.005829,68122.0,68121.0,0.16259912]
[1729220934356,0.005829,68122.0,68121.0,0.16759912]
[1729220934600,0.005829,68122.0,68121.0,0.16259912]
[1729220935289,0.005829,68122.0,68121.0,0.01580212]
[1729220935509,0.005829,68122.0,68121.0,0.16259912]
[1729220935741,0.005829,68122.0,68121.0,0.01580212]
[1729220935994,0.005829,68122.0,68121.0,0.16259912]
[1729220936217,0.005829,68122.0,68121.0,0.146797]
[1729220936443,0.005829,68122.0,68121.0,0.16396146]
[1729220938449,0.005829,68122.0,68121.0,0.01716446]
[1729220939576,0.005829,68122.0,68120.0,0.005]
[1729220939803,0.005829,68122.0,68121.0,0.01716446]
[1729220940455,0.004829,68122.0,68121.0,0.01716446]
[1729220940676,0.005829,68122.0,68121.0,0.02216446]
[1729220941335,0.004829,68122.0,68121.0,0.02216446]
[1729220941564,0.005829,68122.0,68121.0,0.13131905]
[1729220941780,0.005829,68122.0,68121.0,0.13631905]
[1729220941998,0.005829,68122.0,68121.0,0.28311605]
[1729220942236,0.005829,68122.0,68121.0,0.13631905]
[1729220945652,0.005829,68122.0,68121.0,0.28311605]
[1729220946129,0.005829,68122.0,68121.0,0.13631905]
[1729220947062,0.005829,68122.0,68121.0,0.28311605]
[1729220947766,0.005829,68122.0,68121.0,0.13631905]
[1729220951006,0.005829,68122.0,68121.0,0.28311605]
[1729220955544,0.005829,68122.0,68121.0,0.35971605]
[1729220955769,0.005829,68122.0,68121.0,0.47887064]
[1729220956488,0.004829,68122.0,68121.0,0.47887064]
[1729220956721,0.001829,68122.0,68121.0,0.48087064]
[1729220957195,0.002829,68122.0,68121.0,0.49487064]
[1729220957402,0.002829,68122.0,68121.0,0.58497064]
[1729220958794,0.001829,68122.0,68121.0,0.58297064]
[1729220959063,0.002829,68122.0,68121.0,0.58497064]
[1729220959273,0.002829,68122.0,68121.0,0.47081605]
[1729220959719,0.002829,68122.0,68121.0,0.58497064]
[1729220960176,0.002829,68122.0,68121.0,0.47081605]
[1729220960412,0.002829,68122.0,68121.0,0.58497064]
[1729220960634,0.002829,68122.0,68121.0,0.84392979]
[1729220960852,0.002829,68122.0,68121.0,0.89153842]
[1729220961788,0.002829,68122.0,68121.0,1.00369301]
[1729220962009,0.000829,68124.0,68123.0,0.55534759]
[1729220962245,0.000829,68124.0,68123.0,0.63376078]
[1729220962467,0.000829,68124.0,68123.0,0.69459934]
[1729220963611,0.000829,68124.0,68123.0,0.6621881]
[1729220963827,0.001829,68124.0,68123.0,0.6761881]
[1729220964044,0.001829,68124.0,68123.0,0.85574805]
[1729220964724,0.001829,68124.0,68123.0,0.81013942]
[1729220965402,0.001829,68124.0,68123.0,0.85767095]
[1729220965629,0.001829,68124.0,68123.0,0.81213942]
[1729220966972,0.001829,68124.0,68123.0,0.81013942]
[1729220972093,0.001829,68124.0,68123.0,0.64457947]
[1729220975618,0.001829,68124.0,68123.0,0.37448893]
[1729220975855,0.001829,68124.0,68123.0,0.19688893]
[1729220976998,0.001829,68124.0,68123.0,0.18288893]
[1729220977483,0.001829,68124.0,68123.0,0.19688893]
[1729220978147,0.000829,68124.0,68123.0,0.18288893]
[1729220978360,0.001829,68124.0,68123.0,0.19688893]
[1729220978577,0.092529,68124.0,68123.0,0.19688893]
[1729220979945,0.001829,68124.0,68123.0,0.19688893]
[1729220985760,0.001829,68124.0,68123.0,0.19188893]
[1729220986642,0.001829,68124.0,68123.0,0.04509593]
[1729220986867,0.095229,68124.0,68123.0,0.04509593]
[1729220987535,0.095229,68124.0,68123.0,0.028]
[1729220987764,0.095229,68124.0,68123.0,0.04511036]
[1729220988016,0.095229,68124.0,68123.0,0.01876636]
[1729220988017,0.094229,68124.0,68123.0,0.01876636]
[1729220988457,0.099229,68124.0,68123.0,0.01876636]
[1729220989636,0.102229,68124.0,68123.0,0.002656]
[1729220990100,0.102229,68124.0,68123.0,0.01979123]
[1729220990331,0.102229,68124.0,68123.0,0.002656]
[1729220990559,0.102229,68124.0,68123.0,0.0197918]
[1729221000322,0.24902,68124.0,68123.0,0.0197918]
[1729221000567,0.24902,68124.0,68123.0,0.002656]
[1729221000782,0.24902,68124.0,68123.0,0.01982125]
[1729221001012,0.102229,68124.0,68123.0,0.002656]
[1729221001218,0.102229,68124.0,68123.0,0.01982125]
[1729221001426,0.102229,68124.0,68123.0,0.002656]
[1729221001644,0.102229,68124.0,68123.0,0.01982125]
[1729221001857,0.102229,68124.0,68123.0,0.002656]
[1729221002300,0.102229,68124.0,68123.0,0.01982125]
[1729221002513,0.102229,68124.0,68123.0,0.002656]
[1729221002724,0.102229,68124.0,68123.0,0.01982125]
[1729221002956,0.102229,68124.0,68123.0,0.002656]
[1729221003238,0.102229,68124.0,68123.0,0.01982227]
[1729221003459,0.102229,68124.0,68123.0,0.002656]
[1729221003670,0.008829,68124.0,68123.0,0.002656]
[1729221003894,0.008829,68124.0,68123.0,0.01982227]
[1729221004108,0.008829,68124.0,68123.0,0.149449]
[1729221004335,0.008829,68124.0,68123.0,0.16661527]
[1729221005268,0.008829,68124.0,68123.0,0.01982227]
[1729221007704,0.008829,68124.0,68123.0,0.16661527]
[1729221007919,0.008829,68124.0,68123.0,0.01982227]
[1729221012935,0.15562,68124.0,68123.0,0.01982227]
[1729221013164,0.30457915,68124.0,68123.0,0.01982227]
[1729221013411,0.34847429,68124.0,68123.0,0.002656]
[1729221013672,0.49302186,68124.0,68123.0,0.002656]
[1729221013873,0.42717915,68124.0,68123.0,0.002656]
[1729221014353,0.49307398,68124.0,68123.0,0.002656]
[1729221014577,0.77321516,68124.0,68123.0,0.002656]
[1729221015485,0.68542487,68124.0,68123.0,0.002656]
[1729221015921,0.68742487,68124.0,68123.0,0.002656]
[1729221016140,0.67944204,68124.0,68123.0,0.001656]
[1729221016421,0.7753175,68124.0,68123.0,0.003656]
[1729221016631,0.69644204,68124.0,68123.0,0.003656]
[1729221016875,0.67944204,68124.0,68123.0,0.001656]